[Event "GrandPrix_30.05"]
[Site "Chess.com"]
[Date "2020.05.30"]
[Round "7"]
[White "Spartakus1975"]
[Black "ArnaudovP"]
[Result "0-1"]
[WhiteElo "2419"]
[BlackElo "2317"]
[TimeControl "600+2"]
[EndTime "11:19:27 PDT"]
[Termination "ArnaudovP won by resignation"]

1. e4 {[%clk 0:10:01.9]} 1... c6 {[%clk 0:09:56.1]} 2. Nf3 {[%clk 0:09:55.7]}
2... d5 {[%clk 0:09:56.1]} 3. Nc3 {[%clk 0:09:57.1]} 3... dxe4 {[%clk
0:09:55.9]} 4. Nxe4 {[%clk 0:09:57.4]} 4... Nf6 {[%clk 0:09:56.4]} 5. Qe2 {[%clk
0:09:50.9]} 5... Nxe4 {[%clk 0:09:55.8]} 6. Qxe4 {[%clk 0:09:51.2]} 6... Nd7
{[%clk 0:09:55.9]} 7. Bc4 {[%clk 0:09:51.9]} 7... Nf6 {[%clk 0:09:56.5]} 8. Ne5
{[%clk 0:09:52.7]} 8... e6 {[%clk 0:09:57.4]} 9. Qh4 {[%clk 0:09:47]} 9... Bd6
{[%clk 0:09:41.5]} 10. d4 {[%clk 0:09:41.6]} 10... Bxe5 {[%clk 0:09:03.1]} 11.
dxe5 {[%clk 0:09:41.6]} 11... Qa5+ {[%clk 0:09:04.1]} 12. c3 {[%clk 0:09:36.9]}
12... Qxe5+ {[%clk 0:09:04.6]} 13. Be3 {[%clk 0:09:24.6]} 13... Qh5 {[%clk
0:08:58.5]} 14. Qg3 {[%clk 0:08:52.1]} 14... O-O {[%clk 0:08:57.1]} 15. Be2
{[%clk 0:08:42.3]} 15... Qg6 {[%clk 0:08:54.6]} 16. Qd6 {[%clk 0:08:38.4]} 16...
Nd5 {[%clk 0:08:50.4]} 17. Bd4 {[%clk 0:08:28]} 17... Re8 {[%clk 0:08:45.9]} 18.
O-O {[%clk 0:08:06.6]} 18... e5 {[%clk 0:08:44]} 19. Bc5 {[%clk 0:07:38.3]}
19... Be6 {[%clk 0:08:06.3]} 20. Rfe1 {[%clk 0:07:18.7]} 20... f6 {[%clk
0:08:01.9]} 21. Ba3 {[%clk 0:06:57]} 21... Rad8 {[%clk 0:07:54]} 22. Qc5 {[%clk
0:06:56.7]} 22... Nf4 {[%clk 0:07:54.1]} 23. Bf1 {[%clk 0:06:55]} 23... Bd5
{[%clk 0:07:30.7]} 24. g3 {[%clk 0:06:41.1]} 24... Qf5 {[%clk 0:07:11]} 25. Qe3
{[%clk 0:06:34.4]} 25... Nh3+ {[%clk 0:07:08.3]} 26. Bxh3 {[%clk 0:06:35.2]}
26... Qxh3 {[%clk 0:07:09.3]} 27. f3 {[%clk 0:06:36.8]} 27... b6 {[%clk
0:07:01]} 28. b3 {[%clk 0:06:26]} 28... c5 {[%clk 0:06:44.9]} 29. Rad1 {[%clk
0:06:26.2]} 29... Bb7 {[%clk 0:06:39.5]} 30. b4 {[%clk 0:06:26.7]} 30... cxb4
{[%clk 0:06:34.9]} 31. Bxb4 {[%clk 0:06:26.3]} 31... Qf5 {[%clk 0:06:33.9]} 32.
Kf2 {[%clk 0:05:42.5]} 32... a5 {[%clk 0:06:04.2]} 33. Ba3 {[%clk 0:05:39.9]}
33... Qc2+ {[%clk 0:06:04.3]} 34. Qe2 {[%clk 0:05:35.7]} 34... Qxc3 {[%clk
0:06:01.4]} 35. Bb2 {[%clk 0:05:25.7]} 35... Qc5+ {[%clk 0:06:01]} 36. Kg2
{[%clk 0:05:26.5]} 36... e4 {[%clk 0:05:29.2]} 37. Qf2 {[%clk 0:04:17.5]} 37...
exf3+ {[%clk 0:05:24.5]} 38. Kg1 {[%clk 0:04:18.9]} 38... Rxe1+ {[%clk 0:05:12]}
39. Rxe1 {[%clk 0:04:16.4]} 39... Qxf2+ {[%clk 0:05:12.2]} 0-1

[Event "GrandPrix_30.05"]
[Site "Chess.com"]
[Date "2020.05.30"]
[Round "7"]
[White "ValeriyGrinev"]
[Black "Malysch"]
[Result "0-1"]
[WhiteElo "2141"]
[BlackElo "2315"]
[TimeControl "600+2"]
[EndTime "11:19:44 PDT"]
[Termination "Malysch won by resignation"]

1. c4 {[%clk 0:10:01.9]} 1... f5 {[%clk 0:09:59.3]} 2. Nc3 {[%clk 0:09:56.4]}
2... Nf6 {[%clk 0:09:59.8]} 3. g3 {[%clk 0:09:57.6]} 3... g6 {[%clk 0:10:00.8]}
4. Bg2 {[%clk 0:09:59.2]} 4... Bg7 {[%clk 0:10:01.9]} 5. d3 {[%clk 0:10:00.9]}
5... d6 {[%clk 0:10:01.2]} 6. e4 {[%clk 0:10:02.3]} 6... Nc6 {[%clk 0:10:01]} 7.
Nge2 {[%clk 0:10:03.3]} 7... O-O {[%clk 0:10:01.4]} 8. O-O {[%clk 0:10:03.6]}
8... e5 {[%clk 0:09:58.9]} 9. h3 {[%clk 0:09:57.8]} 9... Be6 {[%clk 0:09:46.8]}
10. Nd5 {[%clk 0:09:58]} 10... Qd7 {[%clk 0:09:45.8]} 11. Kh2 {[%clk 0:09:57.8]}
11... Rae8 {[%clk 0:09:42.5]} 12. Be3 {[%clk 0:09:53.7]} 12... Kh8 {[%clk
0:09:41.7]} 13. Qd2 {[%clk 0:09:52.5]} 13... Ng8 {[%clk 0:09:36.8]} 14. exf5
{[%clk 0:09:28.3]} 14... Bxf5 {[%clk 0:09:36.1]} 15. d4 {[%clk 0:09:26]} 15...
exd4 {[%clk 0:08:01]} 16. Nxd4 {[%clk 0:09:24.1]} 16... Be4 {[%clk 0:07:59.2]}
17. Rae1 {[%clk 0:08:17.7]} 17... Bxg2 {[%clk 0:07:32.9]} 18. Kxg2 {[%clk
0:08:19.6]} 18... Ne5 {[%clk 0:07:33.1]} 19. Qc2 {[%clk 0:07:50.8]} 19... c6
{[%clk 0:07:08.6]} 20. Nf4 {[%clk 0:07:38.7]} 20... c5 {[%clk 0:05:59]} 21. Nb5
{[%clk 0:07:26.4]} 21... Qc6+ {[%clk 0:05:47.1]} 22. f3 {[%clk 0:07:20.4]} 22...
a6 {[%clk 0:05:23.8]} 23. Na3 {[%clk 0:07:20.6]} 23... b5 {[%clk 0:05:13.1]} 24.
h4 {[%clk 0:06:38.1]} 24... Nh6 {[%clk 0:05:02.4]} 25. b3 {[%clk 0:06:00]} 25...
Nhg4 {[%clk 0:04:50.4]} 26. Bd2 {[%clk 0:05:12.5]} 26... Nxf3 {[%clk 0:04:11]}
27. Rxf3 {[%clk 0:05:11.2]} 27... Rxe1 {[%clk 0:04:10.5]} 28. Qd3 {[%clk
0:04:38.2]} 28... Ne5 {[%clk 0:03:53.5]} 0-1

[Event "GrandPrix_30.05"]
[Site "Chess.com"]
[Date "2020.05.30"]
[Round "7"]
[White "kpio91"]
[Black "AsadliVugar"]
[Result "0-1"]
[WhiteElo "2602"]
[BlackElo "2613"]
[TimeControl "600+2"]
[EndTime "11:19:49 PDT"]
[Termination "AsadliVugar won by resignation"]

1. d4 {[%clk 0:10:01.9]} 1... Nf6 {[%clk 0:10:00]} 2. Nf3 {[%clk 0:10:01.9]}
2... e6 {[%clk 0:10:00.5]} 3. c4 {[%clk 0:10:02.6]} 3... b6 {[%clk 0:09:57.4]}
4. a3 {[%clk 0:09:55.6]} 4... Bb7 {[%clk 0:09:57.5]} 5. Bf4 {[%clk 0:09:56.6]}
5... g6 {[%clk 0:09:51.7]} 6. e3 {[%clk 0:09:52.9]} 6... Bg7 {[%clk 0:09:34.4]}
7. Nbd2 {[%clk 0:09:51.2]} 7... O-O {[%clk 0:09:12.2]} 8. Be2 {[%clk 0:09:34.8]}
8... Nh5 {[%clk 0:09:04.3]} 9. Bg5 {[%clk 0:09:28.5]} 9... f6 {[%clk 0:09:02.4]}
10. Bh4 {[%clk 0:09:27.3]} 10... g5 {[%clk 0:08:54.1]} 11. g4 {[%clk 0:09:16.6]}
11... gxh4 {[%clk 0:08:31.9]} 12. gxh5 {[%clk 0:09:16.8]} 12... f5 {[%clk
0:08:33.1]} 13. Rg1 {[%clk 0:09:12.9]} 13... Kh8 {[%clk 0:08:33.9]} 14. Qc2
{[%clk 0:08:53.3]} 14... c5 {[%clk 0:08:00.7]} 15. O-O-O {[%clk 0:08:38.6]}
15... cxd4 {[%clk 0:08:01.1]} 16. Nxd4 {[%clk 0:08:38.4]} 16... Nc6 {[%clk
0:07:53]} 17. N2f3 {[%clk 0:08:31.2]} 17... Nxd4 {[%clk 0:07:21.2]} 18. Nxd4
{[%clk 0:07:49.4]} 18... Qe7 {[%clk 0:07:21.7]} 19. Kb1 {[%clk 0:07:44.1]} 19...
Rac8 {[%clk 0:07:15.9]} 20. Qd2 {[%clk 0:07:17.7]} 20... d5 {[%clk 0:06:51.4]}
21. Rc1 {[%clk 0:07:09.9]} 21... e5 {[%clk 0:06:40.6]} 22. Nb5 {[%clk
0:06:57.7]} 22... a6 {[%clk 0:06:36.8]} 23. Nc3 {[%clk 0:06:55.9]} 23... dxc4
{[%clk 0:06:38.2]} 24. e4 {[%clk 0:06:44.4]} 24... fxe4 {[%clk 0:06:30.1]} 25.
h6 {[%clk 0:06:07.3]} 25... Bf6 {[%clk 0:06:31]} 26. Rg4 {[%clk 0:06:04.4]}
26... Rcd8 {[%clk 0:06:16.3]} 27. Qe3 {[%clk 0:05:56.8]} 27... Bc8 {[%clk
0:06:16.9]} 28. Rgg1 {[%clk 0:05:38.1]} 28... Rd4 {[%clk 0:05:52.8]} 29. Ka1
{[%clk 0:05:15.7]} 29... Bf5 {[%clk 0:05:47.1]} 30. Rce1 {[%clk 0:04:46.7]}
30... b5 {[%clk 0:05:35]} 31. f3 {[%clk 0:04:37.8]} 31... exf3 {[%clk
0:05:21.8]} 32. Bxf3 {[%clk 0:04:37]} 32... e4 {[%clk 0:05:05.4]} 33. Bxe4
{[%clk 0:03:49]} 33... Bxe4 {[%clk 0:05:03.3]} 34. Nxe4 {[%clk 0:03:50.2]} 34...
Rxe4 {[%clk 0:05:01]} 0-1

[Event "GrandPrix_30.05"]
[Site "Chess.com"]
[Date "2020.05.30"]
[Round "7"]
[White "Olghita64"]
[Black "RussianChessFighter"]
[Result "1-0"]
[WhiteElo "2087"]
[BlackElo "2144"]
[TimeControl "600+2"]
[EndTime "11:19:51 PDT"]
[Termination "Olghita64 won by checkmate"]

1. Nf3 {[%clk 0:10:01.9]} 1... Nf6 {[%clk 0:10:00.5]} 2. c4 {[%clk 0:10:01.8]}
2... g6 {[%clk 0:10:02.4]} 3. Nc3 {[%clk 0:10:00.5]} 3... Bg7 {[%clk 0:10:04.3]}
4. e4 {[%clk 0:10:00.6]} 4... O-O {[%clk 0:10:06]} 5. d4 {[%clk 0:10:00.6]} 5...
d6 {[%clk 0:10:07.4]} 6. Be2 {[%clk 0:10:00.9]} 6... e5 {[%clk 0:10:07.8]} 7.
Be3 {[%clk 0:10:01.6]} 7... Ng4 {[%clk 0:10:05.4]} 8. Bg5 {[%clk 0:10:02]} 8...
f6 {[%clk 0:10:06.7]} 9. Bh4 {[%clk 0:10:02.9]} 9... Nc6 {[%clk 0:10:06.3]} 10.
d5 {[%clk 0:09:40.7]} 10... Ne7 {[%clk 0:10:06.4]} 11. Nd2 {[%clk 0:09:41.1]}
11... Nh6 {[%clk 0:10:06.9]} 12. f3 {[%clk 0:09:41.1]} 12... g5 {[%clk
0:10:05.8]} 13. Bf2 {[%clk 0:09:41.2]} 13... f5 {[%clk 0:10:07.5]} 14. c5 {[%clk
0:09:35.6]} 14... Ng6 {[%clk 0:10:01.2]} 15. Qb3 {[%clk 0:09:15.9]} 15... Nf4
{[%clk 0:09:51.6]} 16. Bf1 {[%clk 0:09:11.5]} 16... fxe4 {[%clk 0:09:43.6]} 17.
Ndxe4 {[%clk 0:08:58.5]} 17... g4 {[%clk 0:09:40.4]} 18. O-O-O {[%clk
0:08:57.5]} 18... gxf3 {[%clk 0:09:24.3]} 19. gxf3 {[%clk 0:08:56.4]} 19... Nf5
{[%clk 0:09:25.7]} 20. Rg1 {[%clk 0:08:53.2]} 20... Kh8 {[%clk 0:09:26.3]} 21.
cxd6 {[%clk 0:08:03.6]} 21... cxd6 {[%clk 0:09:28.2]} 22. Kb1 {[%clk 0:07:16.5]}
22... Nd4 {[%clk 0:09:28.4]} 23. Bxd4 {[%clk 0:07:16.2]} 23... exd4 {[%clk
0:09:29.1]} 24. Nb5 {[%clk 0:07:16.2]} 24... Be5 {[%clk 0:09:14.1]} 25. Nxd4
{[%clk 0:07:08.2]} 25... Qe7 {[%clk 0:08:46.4]} 26. Rd2 {[%clk 0:06:18.4]} 26...
Bf5 {[%clk 0:08:33.4]} 27. Nxf5 {[%clk 0:06:04.8]} 27... Rxf5 {[%clk 0:08:35.3]}
28. Bd3 {[%clk 0:05:57]} 28... Rff8 {[%clk 0:08:34.8]} 29. Bc2 {[%clk
0:05:31.8]} 29... Rg8 {[%clk 0:08:35.3]} 30. Rc1 {[%clk 0:05:20.2]} 30... Rac8
{[%clk 0:08:32.4]} 31. Ng3 {[%clk 0:05:14.2]} 31... h5 {[%clk 0:07:55.5]} 32.
Ne2 {[%clk 0:05:04.3]} 32... Qf7 {[%clk 0:07:41]} 33. Be4 {[%clk 0:04:57.7]}
33... Rxc1+ {[%clk 0:07:36]} 34. Nxc1 {[%clk 0:04:51.9]} 34... Rg1 {[%clk
0:07:33.9]} 35. Qc4 {[%clk 0:04:39]} 35... h4 {[%clk 0:07:29.1]} 36. Rc2 {[%clk
0:04:20.8]} 36... h3 {[%clk 0:07:20.5]} 37. a3 {[%clk 0:03:02.2]} 37... Rg2
{[%clk 0:07:12.5]} 38. Nd3 {[%clk 0:02:56.4]} 38... Nxd3 {[%clk 0:07:02.9]} 39.
Bxd3 {[%clk 0:02:53.6]} 39... Qxf3 {[%clk 0:06:54.3]} 40. Qh4+ {[%clk
0:02:44.4]} 40... Kg7 {[%clk 0:06:34.8]} 41. Rc7+ {[%clk 0:02:43]} 41... Kf8
{[%clk 0:06:35.9]} 42. Qd8# {[%clk 0:02:41.9]} 1-0

[Event "GrandPrix_30.05"]
[Site "Chess.com"]
[Date "2020.05.30"]
[Round "7"]
[White "SavelijTartakover"]
[Black "AvitalBor"]
[Result "1-0"]
[WhiteElo "2535"]
[BlackElo "2596"]
[TimeControl "600+2"]
[EndTime "11:21:18 PDT"]
[Termination "SavelijTartakover won by resignation"]

1. d4 {[%clk 0:10:01.9]} 1... e6 {[%clk 0:10:00.7]} 2. c4 {[%clk 0:09:58.3]}
2... d5 {[%clk 0:09:59.1]} 3. Nc3 {[%clk 0:09:57.1]} 3... Be7 {[%clk 0:10:00.3]}
4. cxd5 {[%clk 0:09:56.4]} 4... exd5 {[%clk 0:10:01.1]} 5. Bf4 {[%clk
0:09:57.2]} 5... g5 {[%clk 0:09:52.8]} 6. Bg3 {[%clk 0:09:49.2]} 6... c6 {[%clk
0:09:41.3]} 7. e3 {[%clk 0:09:43.8]} 7... h5 {[%clk 0:09:37.4]} 8. h3 {[%clk
0:09:15]} 8... Be6 {[%clk 0:09:22.8]} 9. Bd3 {[%clk 0:09:13]} 9... Nd7 {[%clk
0:09:04.7]} 10. Nf3 {[%clk 0:09:04.2]} 10... Nh6 {[%clk 0:08:56.5]} 11. Qc2
{[%clk 0:08:55.9]} 11... h4 {[%clk 0:06:27.7]} 12. Bh2 {[%clk 0:08:42.2]} 12...
Nb6 {[%clk 0:06:07.7]} 13. O-O-O {[%clk 0:08:29.7]} 13... Qd7 {[%clk 0:05:38.6]}
14. Ne5 {[%clk 0:08:22]} 14... Qc8 {[%clk 0:05:39.5]} 15. f3 {[%clk 0:08:08]}
15... Nf5 {[%clk 0:05:24.6]} 16. Rhe1 {[%clk 0:08:03.8]} 16... Rg8 {[%clk
0:05:11.6]} 17. Kb1 {[%clk 0:07:45.9]} 17... Kf8 {[%clk 0:04:44.3]} 18. Qf2
{[%clk 0:07:29.7]} 18... c5 {[%clk 0:04:29.1]} 19. Ka1 {[%clk 0:07:15.2]} 19...
c4 {[%clk 0:04:23.8]} 20. Bxf5 {[%clk 0:07:00.2]} 20... Bxf5 {[%clk 0:04:24.1]}
21. e4 {[%clk 0:06:59.5]} 21... Be6 {[%clk 0:04:25.3]} 22. f4 {[%clk 0:06:52]}
22... dxe4 {[%clk 0:04:25.2]} 23. fxg5 {[%clk 0:06:29.7]} 23... Nd7 {[%clk
0:03:22.4]} 24. Nxe4 {[%clk 0:06:00.9]} 24... Nxe5 {[%clk 0:03:23]} 25. Bxe5
{[%clk 0:05:47.5]} 25... c3 {[%clk 0:03:23.5]} 26. d5 {[%clk 0:05:28]} 26...
cxb2+ {[%clk 0:03:21.2]} 27. Bxb2 {[%clk 0:05:17.9]} 27... Bf5 {[%clk
0:03:05.3]} 28. d6 {[%clk 0:05:16.2]} 28... Bd8 {[%clk 0:02:58.8]} 29. Qxh4
{[%clk 0:04:59.2]} 29... Qe6 {[%clk 0:02:28.5]} 30. Nf6 {[%clk 0:04:46.2]} 30...
Bxf6 {[%clk 0:02:29.6]} 31. Bxf6 {[%clk 0:04:31.3]} 1-0

[Event "GrandPrix_30.05"]
[Site "Chess.com"]
[Date "2020.05.30"]
[Round "7"]
[White "Arasvard"]
[Black "ZverevLev"]
[Result "1-0"]
[WhiteElo "2020"]
[BlackElo "2083"]
[TimeControl "600+2"]
[EndTime "11:21:19 PDT"]
[Termination "Arasvard won by resignation"]

1. d4 {[%clk 0:10:01.9]} 1... Nf6 {[%clk 0:09:58.6]} 2. c4 {[%clk 0:10:01.5]}
2... e6 {[%clk 0:09:58.4]} 3. Nc3 {[%clk 0:10:02.1]} 3... Bb4 {[%clk 0:09:59.1]}
4. f3 {[%clk 0:10:03.3]} 4... d5 {[%clk 0:09:57]} 5. a3 {[%clk 0:09:59.5]} 5...
Bxc3+ {[%clk 0:09:56.9]} 6. bxc3 {[%clk 0:10:01.4]} 6... O-O {[%clk 0:09:56.3]}
7. cxd5 {[%clk 0:09:58.2]} 7... exd5 {[%clk 0:09:54.2]} 8. e3 {[%clk 0:09:59]}
8... c5 {[%clk 0:09:54.5]} 9. Bd3 {[%clk 0:09:59.8]} 9... Nc6 {[%clk 0:09:54.6]}
10. Ne2 {[%clk 0:10:00.5]} 10... Ne7 {[%clk 0:09:10.3]} 11. Ng3 {[%clk 0:08:47]}
11... Re8 {[%clk 0:09:04.8]} 12. O-O {[%clk 0:08:46.8]} 12... b6 {[%clk
0:08:58.8]} 13. Ra2 {[%clk 0:08:14.6]} 13... a5 {[%clk 0:08:52]} 14. Re1 {[%clk
0:07:55]} 14... Ba6 {[%clk 0:08:51.6]} 15. Bb1 {[%clk 0:07:56.2]} 15... Rc8
{[%clk 0:08:50.4]} 16. Rf2 {[%clk 0:07:52.2]} 16... cxd4 {[%clk 0:08:45.1]} 17.
cxd4 {[%clk 0:07:52.9]} 17... h6 {[%clk 0:08:26.9]} 18. e4 {[%clk 0:07:39.3]}
18... dxe4 {[%clk 0:08:26.4]} 19. fxe4 {[%clk 0:07:41.2]} 19... Rxc1 {[%clk
0:08:13.6]} 20. Qxc1 {[%clk 0:07:38.9]} 20... Qxd4 {[%clk 0:08:14.3]} 21. Qb2
{[%clk 0:06:51.9]} 21... Qd7 {[%clk 0:08:07.3]} 22. Qxb6 {[%clk 0:06:31.9]}
22... Bc4 {[%clk 0:07:45.4]} 23. Qxa5 {[%clk 0:05:52.4]} 23... Ng4 {[%clk
0:07:42.9]} 24. Rd2 {[%clk 0:05:46.5]} 24... Qc6 {[%clk 0:07:39.3]} 25. h3
{[%clk 0:05:12]} 25... Nf6 {[%clk 0:07:22.9]} 26. Red1 {[%clk 0:04:50.2]} 26...
Bb3 {[%clk 0:07:18.5]} 27. Rf1 {[%clk 0:04:41.5]} 27... Ng6 {[%clk 0:07:11.3]}
28. Rd8 {[%clk 0:04:35.9]} 28... Rxd8 {[%clk 0:07:03.9]} 29. Qxd8+ {[%clk
0:04:36.3]} 29... Kh7 {[%clk 0:07:05.4]} 30. Kh2 {[%clk 0:04:25.5]} 30... Qb5
{[%clk 0:06:41.6]} 31. Rf5 {[%clk 0:03:54.5]} 31... Qb7 {[%clk 0:06:36.1]} 32.
e5 {[%clk 0:03:36.2]} 32... Nd5 {[%clk 0:06:25.7]} 33. e6 {[%clk 0:03:10.7]}
33... Ne3 {[%clk 0:05:47.1]} 34. Be4 {[%clk 0:03:07]} 34... Qa7 {[%clk 0:05:16]}
35. Rxf7 {[%clk 0:02:33.7]} 35... Qxa3 {[%clk 0:05:06.7]} 36. Rf8 {[%clk
0:02:19.7]} 36... Bxe6 {[%clk 0:05:00.1]} 1-0

[Event "GrandPrix_30.05"]
[Site "Chess.com"]
[Date "2020.05.30"]
[Round "7"]
[White "Poghosyan_Suren"]
[Black "Igor_Lysyj"]
[Result "1/2-1/2"]
[WhiteElo "2131"]
[BlackElo "2325"]
[TimeControl "600+2"]
[EndTime "11:21:25 PDT"]
[Termination "Game drawn by repetition"]

1. d4 {[%clk 0:10:01.9]} 1... Nf6 {[%clk 0:09:56.1]} 2. c4 {[%clk 0:10:01.9]}
2... e6 {[%clk 0:09:56.8]} 3. Nc3 {[%clk 0:10:02.9]} 3... Bb4 {[%clk 0:09:56.3]}
4. e3 {[%clk 0:10:04]} 4... O-O {[%clk 0:09:56.6]} 5. Ne2 {[%clk 0:10:04.4]}
5... d5 {[%clk 0:09:56.7]} 6. a3 {[%clk 0:10:04.6]} 6... Bd6 {[%clk 0:09:57.5]}
7. Ng3 {[%clk 0:09:59.7]} 7... c5 {[%clk 0:09:56.7]} 8. dxc5 {[%clk 0:09:49.4]}
8... Bxc5 {[%clk 0:09:57.1]} 9. b4 {[%clk 0:09:50.6]} 9... Be7 {[%clk
0:09:57.8]} 10. cxd5 {[%clk 0:09:50.6]} 10... Nxd5 {[%clk 0:09:58]} 11. Nxd5
{[%clk 0:09:50.8]} 11... Qxd5 {[%clk 0:09:58.4]} 12. Qxd5 {[%clk 0:09:51.1]}
12... exd5 {[%clk 0:09:59.3]} 13. Bb2 {[%clk 0:09:52.2]} 13... a5 {[%clk
0:09:59.9]} 14. bxa5 {[%clk 0:08:58.3]} 14... Nc6 {[%clk 0:09:51.4]} 15. a6
{[%clk 0:07:58.1]} 15... bxa6 {[%clk 0:09:49.6]} 16. Bd3 {[%clk 0:07:58.5]}
16... Rb8 {[%clk 0:09:46.7]} 17. Rb1 {[%clk 0:07:45.4]} 17... g6 {[%clk
0:08:56.7]} 18. Kd2 {[%clk 0:07:29.9]} 18... Be6 {[%clk 0:08:24]} 19. Rhc1
{[%clk 0:06:28.8]} 19... Na5 {[%clk 0:08:21.2]} 20. Rc7 {[%clk 0:04:39.3]} 20...
Bd6 {[%clk 0:07:14.1]} 21. Ra7 {[%clk 0:04:35.9]} 21... Nb3+ {[%clk 0:07:14.1]}
22. Ke2 {[%clk 0:04:19]} 22... Nc5 {[%clk 0:07:06.3]} 23. Bc2 {[%clk 0:04:12.3]}
23... Rfc8 {[%clk 0:05:56.6]} 24. Bd4 {[%clk 0:03:54]} 24... Nd7 {[%clk
0:05:51.7]} 25. Bd3 {[%clk 0:03:42.1]} 25... Rxb1 {[%clk 0:05:40.6]} 26. Bxb1
{[%clk 0:03:44]} 26... Bxa3 {[%clk 0:05:41.2]} 27. Rxa6 {[%clk 0:03:39.8]} 27...
Bf8 {[%clk 0:05:41]} 28. h4 {[%clk 0:03:29.4]} 28... h5 {[%clk 0:05:37.1]} 29.
Bxg6 {[%clk 0:03:00.3]} 29... Nb8 {[%clk 0:05:22.8]} 30. Rb6 {[%clk 0:02:43.6]}
30... Nd7 {[%clk 0:05:23.5]} 31. Ra6 {[%clk 0:02:34.8]} 31... Nb8 {[%clk
0:05:23.8]} 32. Rb6 {[%clk 0:01:33.9]} 32... Nd7 {[%clk 0:05:23.3]} 33. Ra6
{[%clk 0:01:34.8]} 1/2-1/2

[Event "GrandPrix_30.05"]
[Site "Chess.com"]
[Date "2020.05.30"]
[Round "7"]
[White "Salnaa"]
[Black "Kopytkin"]
[Result "1-0"]
[WhiteElo "2128"]
[BlackElo "2048"]
[TimeControl "600+2"]
[EndTime "11:21:28 PDT"]
[Termination "Salnaa won by resignation"]

1. d4 {[%clk 0:10:01.9]} 1... f5 {[%clk 0:09:51.1]} 2. c4 {[%clk 0:09:59]} 2...
Nf6 {[%clk 0:09:51.5]} 3. Nc3 {[%clk 0:09:59.5]} 3... e6 {[%clk 0:09:52.9]} 4.
g3 {[%clk 0:10:00.4]} 4... Bb4 {[%clk 0:09:47]} 5. Qc2 {[%clk 0:09:51.1]} 5...
O-O {[%clk 0:09:46.5]} 6. Bg2 {[%clk 0:09:50.9]} 6... d6 {[%clk 0:09:34.8]} 7.
Nf3 {[%clk 0:09:35.5]} 7... Nc6 {[%clk 0:09:34]} 8. O-O {[%clk 0:09:20.8]} 8...
Qe7 {[%clk 0:09:32.6]} 9. a3 {[%clk 0:08:51.6]} 9... Bxc3 {[%clk 0:09:32.2]} 10.
Qxc3 {[%clk 0:08:53.5]} 10... e5 {[%clk 0:09:32.5]} 11. dxe5 {[%clk 0:08:48.6]}
11... dxe5 {[%clk 0:09:33.1]} 12. b4 {[%clk 0:08:39.9]} 12... e4 {[%clk
0:09:07.3]} 13. Nd4 {[%clk 0:08:39.8]} 13... Ne5 {[%clk 0:09:08.3]} 14. Bb2
{[%clk 0:08:35.1]} 14... Re8 {[%clk 0:09:06.1]} 15. Rad1 {[%clk 0:07:37.2]}
15... Bd7 {[%clk 0:09:05.3]} 16. Rd2 {[%clk 0:07:11.8]} 16... c6 {[%clk
0:08:42.6]} 17. Nb3 {[%clk 0:07:06]} 17... Neg4 {[%clk 0:08:25]} 18. e3 {[%clk
0:05:56.9]} 18... b6 {[%clk 0:08:22.5]} 19. Rfd1 {[%clk 0:05:55.7]} 19... Rad8
{[%clk 0:08:19.2]} 20. h3 {[%clk 0:05:33.5]} 20... Ne5 {[%clk 0:08:13.2]} 21. c5
{[%clk 0:05:02.8]} 21... Nd3 {[%clk 0:08:03.7]} 22. Bf1 {[%clk 0:04:19.5]} 22...
Be6 {[%clk 0:07:46.1]} 23. Nd4 {[%clk 0:04:18.4]} 23... Bd5 {[%clk 0:06:19.5]}
24. Nxf5 {[%clk 0:04:16.9]} 24... Qe6 {[%clk 0:06:13.4]} 25. Nh6+ {[%clk
0:03:40.7]} 25... Kf8 {[%clk 0:06:03.9]} 26. Ng4 {[%clk 0:03:40.4]} 26... Kf7
{[%clk 0:05:55.8]} 27. Nxf6 {[%clk 0:03:36.2]} 27... gxf6 {[%clk 0:05:56.5]} 28.
Bxd3 {[%clk 0:03:35.9]} 28... exd3 {[%clk 0:05:52]} 29. Rxd3 {[%clk 0:03:37.8]}
29... Re7 {[%clk 0:05:05.8]} 30. Rd4 {[%clk 0:03:15.9]} 30... Qxh3 {[%clk
0:04:15.7]} 31. Rxd5 {[%clk 0:03:06.7]} 31... Rxd5 {[%clk 0:04:11.7]} 32. Qxf6+
{[%clk 0:03:07.2]} 32... Ke8 {[%clk 0:04:12.9]} 33. Qxc6+ {[%clk 0:03:08.2]}
33... Qd7 {[%clk 0:04:08.5]} 34. Qxd5 {[%clk 0:03:06]} 1-0